fUST/lending_fUST_20240727
["ID","MTS","AMOUNT","RATE_DAILY","PERIOD"]
[333367560,1722075043692,-740.91,0.00013698,2]
[333367561,1722075043704,-740.91,0.00013698,2]
[333367562,1722075043714,-620.26,0.00013698,2]
[333367564,1722075043724,-740.91,0.00013698,2]
[333367566,1722075043735,-740.91,0.00013698,2]
[333367567,1722075043748,-740.91,0.00013698,2]
[333367568,1722075043760,-500.0,0.00013698,2]
[333367569,1722075043771,-740.91,0.00013698,2]
[333367571,1722075043781,-740.91,0.00013698,2]
[333367572,1722075043794,-740.91,0.00013698,2]
[333367573,1722075043804,-740.91,0.00013698,2]
[333367574,1722075043814,-740.91,0.00013698,2]
[333367575,1722075043823,-740.91,0.00013698,2]
[333367576,1722075043835,-500.0,0.00013698,2]
[333367578,1722075043846,-2657.5,0.00013698,2]
[333367580,1722075043857,-741.02847145,0.00013698,2]
[333367582,1722075043867,-500.0,0.00013698,2]
[333367584,1722075043876,-500.0,0.00013698,2]
[333367585,1722075043886,-500.0,0.00013698,2]
[333367587,1722075043896,-194.22174648,0.00013698,2]
[333367589,1722075043906,-151.0,0.00013698,2]
[333367590,1722075043916,-502.8981417,0.00013698,2]
[333367592,1722075043926,-500.0,0.00013698,2]
[333367594,1722075043937,-500.0,0.00013698,2]
[333367595,1722075043947,-500.0,0.00013698,2]
[333367597,1722075043957,-500.0,0.00013698,2]
[333367598,1722075043967,-1646.35,0.00013698,2]
[333367599,1722075043977,-500.0,0.00013698,2]
[333367600,1722075043986,-500.0,0.00013698,2]
[333367601,1722075043997,-500.0,0.00013698,2]
[333367602,1722075044007,-503.58566811,0.00013698,2]
[333367603,1722075044018,-551.18,0.00013698,2]
[333367604,1722075044029,-483.9056823,0.00013698,2]
[333367605,1722075044039,-195.90726971,0.00013698,2]
[333367606,1722075044050,-500.0,0.00013698,2]
[333367607,1722075044062,-500.0,0.00013698,2]
[333367608,1722075044071,-500.0,0.00013698,2]
[333367609,1722075044081,-500.0,0.00013698,2]
[333367610,1722075044091,-678.24,0.00013698,2]
[333367611,1722075044102,-500.0,0.00013698,2]
[333367612,1722075044111,-500.0,0.00013698,2]
[333367613,1722075044121,-500.0,0.00013698,2]
[333367614,1722075044131,-500.0,0.00013698,2]
[333367616,1722075044141,-538.30593173,0.00013698,2]
[333367618,1722075044151,-500.0,0.00013698,2]
[333367619,1722075044161,-500.0,0.00013698,2]
[333367620,1722075044171,-500.0,0.00013698,2]
[333367621,1722075044181,-553.6459299,0.00013698,2]
[333367622,1722075044190,-500.0,0.00013698,2]
[333367623,1722075044200,-500.0,0.00013698,2]
[333367624,1722075044210,-500.0,0.00013698,2]
[333367625,1722075044220,-500.0,0.00013698,2]
[333367626,1722075044230,-500.0,0.00013698,2]
[333367627,1722075044239,-500.0,0.00013698,2]
[333367628,1722075044249,-392.24800555,0.00013698,2]
[333367629,1722075044258,-500.0,0.00013698,2]
[333367630,1722075044268,-500.0,0.00013698,2]
[333367631,1722075044277,-500.0,0.00013698,2]
[333367632,1722075044288,-500.0,0.00013698,2]
[333367633,1722075044298,-205.45958972,0.00013698,2]
[333367634,1722075044307,-151.0,0.00013698,2]
[333367635,1722075044319,-3000.0,0.00013699,2]
[333367636,1722075044328,-1343.930953,0.00013699,2]
[333367637,1722075044338,-355.0,0.00013699,2]
[333367638,1722075044348,-151.0,0.00013699,2]
[333367639,1722075044359,-186.999493,0.00013699,2]
[333367640,1722075044369,-347.35385011,0.00013713,2]
[333367641,1722075044379,-150.0,0.00013824,2]
[333367642,1722075044388,-150.0,0.000139,30]
[333367643,1722075044398,-5058.81973502,0.00013927,2]
[333367644,1722075044408,-500.0,0.00013972,2]
[333367645,1722075044420,-500.0,0.00013972,2]
[333367646,1722075044432,-500.0,0.00013972,2]
[333367647,1722075044442,-505.86770827,0.00013972,2]
[333367648,1722075044452,-736.93,0.00013972,2]
[333367649,1722075044463,-500.0,0.00013972,2]
[333367650,1722075044473,-500.0,0.00013972,2]
[333367651,1722075044482,-500.0,0.00013972,2]
[333367652,1722075044492,-500.0,0.00013972,2]
[333367653,1722075044503,-500.0,0.00013972,2]
[333367654,1722075044513,-500.0,0.00013972,2]
[333367655,1722075044523,-500.0,0.00013972,2]
[333367656,1722075044533,-500.0,0.00013972,2]
[333367657,1722075044542,-664.43,0.00013972,2]
[333367658,1722075044551,-1156.56,0.00013972,2]
[333367659,1722075044561,-500.0,0.00013972,2]
[333367660,1722075044571,-500.0,0.00013972,2]
[333367661,1722075044581,-500.0,0.00013972,2]
[333367662,1722075044591,-500.0,0.00013972,2]
[333367663,1722075044600,-504.23831053,0.00013972,2]
[333367664,1722075044611,-500.0,0.00013972,2]
[333367665,1722075044624,-550.3532329,0.00013972,2]
[333367666,1722075044636,-345.75199749,0.00013972,2]
[333367667,1722075044648,-505.72425397,0.00013972,2]
[333367668,1722075044658,-504.31659562,0.00013972,2]
[333367669,1722075044668,-500.0,0.00013972,2]
[333367670,1722075044678,-500.0,0.00013972,2]
[333367671,1722075044688,-431.34980111,0.00013972,2]
[333367672,1722075044698,-500.0,0.00013972,2]
[333367673,1722075044708,-514.16073634,0.00013972,2]
[333367674,1722075044718,-298.52954347,0.00013972,2]
[333367675,1722075044729,-500.0,0.00013972,2]
[333367676,1722075044738,-500.0,0.00013972,2]
[333367677,1722075044748,-579.98,0.00013972,2]
[333367678,1722075044759,-500.0,0.00013972,2]
[333367679,1722075044768,-500.0,0.00013972,2]
[333367680,1722075044778,-506.52407148,0.00013972,2]
[333367681,1722075044788,-362.09,0.00013972,2]
[333367682,1722075044797,-598.78,0.00013972,2]
[333367683,1722075044806,-500.0,0.00013972,2]
[333367684,1722075044817,-500.0,0.00013972,2]
[333367685,1722075044827,-500.0,0.00013972,2]
[333367686,1722075044837,-500.0,0.00013972,2]
[333367687,1722075044846,-619.23,0.00013972,2]
[333367688,1722075044856,-500.0,0.00013972,2]
[333367689,1722075044865,-733.76,0.00013972,2]
[333367690,1722075044875,-500.0,0.00013972,2]
[333367691,1722075044885,-500.0,0.00013972,2]
[333367692,1722075044895,-237.08,0.00013972,2]
[333367693,1722075044904,-500.0,0.00013972,2]
[333367694,1722075044914,-929.95,0.00013972,2]
[333367695,1722075044924,-469.49319836,0.00013972,2]
[333367696,1722075044933,-500.0,0.00013972,2]
[333367697,1722075044942,-500.0,0.00013972,2]
[333367698,1722075044951,-500.0,0.00013972,2]
[333367699,1722075044961,-500.0,0.00013972,2]
[333367700,1722075044971,-500.0,0.00013972,2]
[333367701,1722075044981,-1016.99,0.00013972,2]
[333367702,1722075044991,-500.0,0.00013972,2]
[333367703,1722075045001,-500.0,0.00013972,2]
[333367704,1722075045011,-278.4730625,0.00013972,2]
[333367705,1722075045022,-500.0,0.00013972,2]
[333367706,1722075045031,-382.14220212,0.00013972,2]
[333367707,1722075045042,-792.56,0.00013972,2]
[333367708,1722075045052,-500.0,0.00013972,2]
[333367709,1722075045063,-504.73854438,0.00013972,2]
[333367710,1722075045072,-500.0,0.00013972,2]
[333367711,1722075045082,-500.0,0.00013972,2]
[333367712,1722075045091,-500.0,0.00013972,2]
[333367713,1722075045101,-500.0,0.00013972,2]
[333367714,1722075045111,-1166.75,0.00013972,2]
[333367715,1722075045121,-500.0,0.00013972,2]
[333367716,1722075045130,-500.0,0.00013972,2]
[333367717,1722075045139,-908.42,0.00013972,2]
[333367718,1722075045148,-590.84,0.00013972,2]
[333367719,1722075045158,-500.0,0.00013972,2]
[333367720,1722075045167,-500.0,0.00013972,2]
[333367721,1722075045177,-500.0,0.00013972,2]
[333367722,1722075045186,-151.0,0.00013972,2]
[333367723,1722075045195,-508.57805667,0.00013972,2]
[333367724,1722075045205,-594.61,0.00013972,2]
[333367725,1722075045214,-151.404474,0.00013972,2]
[333367726,1722075045224,-500.0,0.00013972,2]
[333367727,1722075045233,-151.0,0.00013972,2]
[333367728,1722075045283,-500.0,0.00013972,2]
[333367729,1722075045292,-500.0,0.00013972,2]
[333367730,1722075045301,-500.0,0.00013972,2]
[333367731,1722075045311,-500.0,0.00013972,2]
[333367732,1722075045321,-500.0,0.00013972,2]
[333367733,1722075045332,-511.06721115,0.00013972,2]
[333367734,1722075045342,-500.0,0.00013972,2]
[333367735,1722075045352,-500.0,0.00013972,2]
[333367736,1722075045363,-500.0,0.00013972,2]
[333367737,1722075045372,-500.0,0.00013972,2]
[333367738,1722075045381,-500.0,0.00013972,2]
[333367739,1722075045391,-282.09750877,0.00013972,2]
[333367740,1722075045401,-500.0,0.00013972,2]
[333367741,1722075045410,-375.00139092,0.00013972,2]
[333367742,1722075045421,-500.0,0.00013972,2]
[333367743,1722075045431,-585.45535077,0.00013972,2]
[333367744,1722075045441,-500.0,0.00013972,2]
[333367745,1722075045450,-500.0,0.00013972,2]
[333367746,1722075045459,-877.06,0.00013972,2]
[333367747,1722075045469,-151.0,0.00013972,2]
[333367748,1722075045481,-500.0,0.00013972,2]
[333367749,1722075045494,-500.0,0.00013972,2]
[333367750,1722075045507,-151.0,0.00013972,2]
[333367751,1722075045516,-151.0,0.00013972,2]
[333367752,1722075045529,-4384.68,0.00013972,2]
[333367753,1722075045538,-151.0,0.00013972,2]
[333367754,1722075045550,-1285.58,0.00013972,2]
[333367755,1722075045563,-928.85,0.00013972,2]
[333367756,1722075045573,-179.607442,0.00013972,2]
[333367757,1722075045584,-500.0,0.00013972,2]
[333367758,1722075045597,-151.0,0.00013972,2]
[333367759,1722075045607,-151.0,0.00013972,2]
[333367760,1722075045619,-179.607442,0.00013972,2]
[333367761,1722075045630,-346.17201248,0.00013972,2]
[333367762,1722075045642,-1072.14,0.00013972,2]
[333367763,1722075045651,-500.0,0.00013972,2]
[333367764,1722075045661,-500.0,0.00013972,2]
[333367765,1722075045670,-1918.81,0.00013972,2]
[333367766,1722075045679,-500.0,0.00013972,2]
[333367767,1722075045691,-500.0,0.00013972,2]
[333367768,1722075045703,-500.0,0.00013972,2]
[333367769,1722075045713,-263.78998449,0.00013972,2]
[333367770,1722075045724,-151.0,0.00013972,2]
[333367771,1722075045734,-500.0,0.00013972,2]
[333367772,1722075045743,-1603.87,0.00013972,2]
[333367773,1722075045753,-541.25,0.00013972,2]
[333367774,1722075045762,-6917.34,0.00013972,2]
[333367775,1722075045772,-500.0,0.00013972,2]
[333367776,1722075045781,-500.0,0.00013972,2]
[333367777,1722075045791,-500.0,0.00013972,2]
[333367778,1722075045800,-500.0,0.00013972,2]
[333367779,1722075045810,-3168.04,0.00013972,2]
[333367780,1722075045819,-1064.65,0.00013972,2]
[333367781,1722075045829,-500.0,0.00013972,2]
[333367783,1722075045839,-500.0,0.00013972,2]
[333367785,1722075045848,-500.0,0.00013972,2]
[333367787,1722075045858,-415.40742,0.00013972,2]
[333367789,1722075045867,-500.0,0.00013972,2]
[333367790,1722075045877,-1430.94,0.00013972,2]
[333367792,1722075045888,-507.41550264,0.00013972,2]
[333367793,1722075045898,-2202.23,0.00013972,2]
[333367795,1722075045907,-500.0,0.00013972,2]
[333367797,1722075045917,-415.40742,0.00013972,2]
[333367799,1722075045926,-640.32,0.00013972,2]
[333367800,1722075045936,-1833.72,0.00013972,2]
[333367802,1722075045947,-461.99888554,0.00013972,2]
[333367803,1722075045958,-786.3,0.00013972,2]
[333367805,1722075045967,-500.0,0.00013972,2]
[333367808,1722075045976,-500.0,0.00013972,2]
[333367809,1722075045986,-152.228824,0.00013972,2]
[333367810,1722075045995,-538.072234,0.00013972,2]
[333367811,1722075046004,-151.0,0.00013972,2]
[333367813,1722075046014,-500.0,0.00013972,2]
[333367814,1722075046023,-160.8196939,0.00013972,2]
[333367815,1722075046033,-152.228824,0.00013972,2]
[333367816,1722075046043,-538.072234,0.00013972,2]
[333367817,1722075046052,-500.0,0.00013972,2]
[333367818,1722075046063,-716.42,0.00013972,2]
[333367820,1722075046073,-500.0,0.00013972,2]
[333367821,1722075046083,-500.0,0.00013972,2]
[333367822,1722075046094,-151.0,0.00013972,2]
[333367823,1722075046103,-500.0,0.00013972,2]
[333367824,1722075046113,-611.75,0.00013972,2]
[333367825,1722075046123,-500.0,0.00013972,2]
[333367826,1722075046132,-1350.04,0.00013972,2]
[333367827,1722075046142,-923.059716,0.00013972,2]
[333367828,1722075046152,-500.0,0.00013972,2]
[333367829,1722075046161,-923.059716,0.00013972,2]
[333367830,1722075046171,-500.0,0.00013972,2]
[333367831,1722075046183,-1512.56,0.00013972,2]
[333367832,1722075046194,-500.0,0.00013972,2]
[333367833,1722075046205,-352.47487786,0.00013972,2]
[333367835,1722075046216,-500.0,0.00013972,2]
[333367836,1722075046227,-500.0,0.00013972,2]
[333367837,1722075046240,-809.85,0.00013972,2]
[333367838,1722075046251,-652.09,0.00013972,2]
[333367839,1722075046263,-500.0,0.00013972,2]
[333367840,1722075046272,-500.0,0.00013972,2]
[333367841,1722075046282,-618.71,0.00013972,2]
[333367842,1722075046291,-500.0,0.00013972,2]
[333367843,1722075046301,-981.28,0.00013972,2]
[333367844,1722075046311,-500.0,0.00013972,2]
[333367845,1722075046320,-500.0,0.00013972,2]
[333367846,1722075046329,-2141.38,0.00013972,2]
[333367847,1722075046338,-522.09,0.00013972,2]
[333367848,1722075046348,-151.0,0.00013972,2]
[333367849,1722075046358,-500.0,0.00013972,2]
[333367850,1722075046367,-500.0,0.00013972,2]
[333367851,1722075046377,-500.0,0.00013972,2]
[333367852,1722075046389,-500.0,0.00013972,2]
[333367853,1722075046400,-1299.52,0.00013972,2]
[333367854,1722075046411,-500.0,0.00013972,2]
[333367855,1722075046427,-894.06,0.00013972,2]
[333367856,1722075046438,-500.0,0.00013972,2]
[333367857,1722075046449,-1018.98,0.00013972,2]
[333367858,1722075046459,-728.95,0.00013972,2]
[333367859,1722075046470,-500.0,0.00013972,2]
[333367860,1722075046479,-559.34253749,0.00013972,2]
[333367861,1722075046489,-151.0,0.00013972,2]
[333367862,1722075046500,-714.09,0.00013972,2]
[333367863,1722075046510,-151.0,0.00013972,2]
[333367864,1722075046519,-1085.31,0.00013972,2]
[333367865,1722075046529,-500.0,0.00013972,2]
[333367866,1722075046539,-1080.39,0.00013972,2]
[333367867,1722075046548,-500.0,0.00013972,2]
[333367868,1722075046558,-500.0,0.00013972,2]
[333367869,1722075046567,-500.0,0.00013972,2]
[333367870,1722075046577,-500.0,0.00013972,2]
[333367871,1722075046587,-500.0,0.00013972,2]
[333367872,1722075046597,-879.1,0.00013972,2]
[333367873,1722075046606,-500.0,0.00013972,2]
[333367874,1722075046616,-267.081974,0.00013972,2]
[333367875,1722075046626,-267.081974,0.00013972,2]
[333367876,1722075046635,-1751.88,0.00013972,2]
[333367877,1722075046645,-339.271234,0.00013972,2]
[333367878,1722075046655,-500.0,0.00013972,2]
[333367879,1722075046665,-1385.03,0.00013972,2]
[333367880,1722075046674,-508.76286767,0.00013972,2]
[333367881,1722075046683,-500.0,0.00013972,2]
[333367882,1722075046693,-339.271234,0.00013972,2]
[333367883,1722075046703,-500.0,0.00013972,2]
[333367884,1722075046713,-500.0,0.00013972,2]
[333367885,1722075046723,-500.0,0.00013972,2]
[333367886,1722075046732,-1796.01,0.00013972,2]
[333367887,1722075046742,-193.864355,0.00013972,2]
[333367888,1722075046752,-500.0,0.00013972,2]
[333367889,1722075046761,-500.0,0.00013972,2]
[333367890,1722075046771,-500.0,0.00013972,2]
[333367891,1722075046781,-656.36,0.00013972,2]
[333367892,1722075046790,-500.0,0.00013972,2]
[333367893,1722075046800,-151.0,0.00013972,2]
[333367894,1722075046810,-500.0,0.00013972,2]
[333367895,1722075046819,-742.6,0.00013972,2]
[333367896,1722075046829,-1185.24,0.00013972,2]
[333367897,1722075046838,-151.0,0.00013972,2]
[333367898,1722075046848,-2214.71,0.00013972,2]
[333367899,1722075046858,-500.0,0.00013972,2]
[333367900,1722075046867,-500.0,0.00013972,2]
[333367901,1722075046877,-170.657059,0.00013972,2]
[333367902,1722075046888,-620.26,0.00013972,2]
[333367903,1722075046898,-500.0,0.00013972,2]
[333367904,1722075046909,-500.0,0.00013972,2]
[333367905,1722075046919,-2657.5,0.00013972,2]
[333367906,1722075046929,-500.0,0.00013972,2]
[333367907,1722075046938,-500.0,0.00013972,2]
[333367908,1722075046948,-151.0,0.00013972,2]
[333367909,1722075046958,-500.0,0.00013972,2]
[333367910,1722075046968,-151.0,0.00013972,2]
[333367911,1722075046978,-500.0,0.00013972,2]
[333367912,1722075046988,-348.32767761,0.00013972,2]
[333367913,1722075046998,-1646.35,0.00013972,2]
[333367914,1722075047008,-678.24,0.00013972,2]
[333367915,1722075047018,-500.0,0.00013972,2]
[333367916,1722075047028,-500.0,0.00013972,2]
[333367917,1722075047037,-1409.0,0.00013994,2]
[333367918,1722075047047,-154.68290005,0.00014,2]
[333367919,1722075047058,-297.12575329,0.00014,2]
[333367920,1722075047068,-150.112233,0.00014,2]
[333367921,1722075047078,-587.9283936,0.00014055,2]
[333367922,1722075047088,-150.112233,0.000141,2]
[333367923,1722075047098,-150.112233,0.000142,2]
[333367924,1722075047108,-150.112233,0.000142,2]
[333367925,1722075047118,-300.0,0.000142,5]
[333367926,1722075047127,-3202.261,0.0001422,2]
[333367927,1722075047137,-181.477012,0.00014225,2]
[333367928,1722075047147,-614.62687233,0.00014246,2]
[333367929,1722075047157,-500.0,0.00014246,2]
[333367930,1722075047167,-736.93,0.00014246,2]
[333367931,1722075047176,-500.0,0.00014246,2]
[333367932,1722075047186,-500.0,0.00014246,2]
[333367933,1722075047197,-500.0,0.00014246,2]
[333367934,1722075047207,-500.0,0.00014246,2]
[333367935,1722075047217,-500.0,0.00014246,2]
[333367936,1722075047227,-500.0,0.00014246,2]
[333367937,1722075047236,-500.0,0.00014246,2]
[333367938,1722075047246,-500.0,0.00014246,2]
[333367939,1722075047257,-664.43,0.00014246,2]
[333367940,1722075047267,-1156.56,0.00014246,2]
[333367941,1722075047277,-500.0,0.00014246,2]
[333367942,1722075047286,-500.0,0.00014246,2]
[333367943,1722075047296,-500.0,0.00014246,2]
[333367944,1722075047306,-500.0,0.00014246,2]
[333367945,1722075047316,-500.0,0.00014246,2]
[333367946,1722075047325,-500.0,0.00014246,2]
[333367947,1722075047335,-151.0,0.00014246,2]
[333367948,1722075047345,-151.0,0.00014246,2]
[333367949,1722075047355,-579.98,0.00014246,2]
[333367950,1722075047364,-500.0,0.00014246,2]
[333367951,1722075047374,-500.0,0.00014246,2]
[333367952,1722075047383,-598.78,0.00014246,2]
[333367953,1722075047393,-151.0,0.00014246,2]
[333367954,1722075047404,-550.49293423,0.00014246,2]
[333367955,1722075047415,-151.0,0.00014246,2]
[333367956,1722075047433,-151.0,0.00014246,2]
[333367957,1722075047451,-500.0,0.00014246,2]
[333367958,1722075047461,-619.23,0.00014246,2]
[333367959,1722075047471,-151.355207,0.00014246,2]
[333367960,1722075047481,-733.76,0.00014246,2]
[333367961,1722075047493,-151.0,0.00014246,2]
[333367962,1722075047503,-151.0,0.00014246,2]
[333367963,1722075047513,-151.0,0.00014246,2]
[333367964,1722075047524,-151.0,0.00014246,2]
[333367965,1722075047533,-500.0,0.00014246,2]
[333367966,1722075047543,-500.0,0.00014246,2]
[333367967,1722075047553,-151.0,0.00014246,2]
[333367968,1722075047563,-500.0,0.00014246,2]
[333367969,1722075047573,-929.95,0.00014246,2]
[333367970,1722075047583,-500.0,0.00014246,2]
[333367971,1722075047592,-500.0,0.00014246,2]
[333367972,1722075047602,-535.96891903,0.00014246,2]
[333367973,1722075047612,-1016.99,0.00014246,2]
[333367974,1722075047621,-151.573041,0.00014246,2]
[333367975,1722075047631,-792.56,0.00014246,2]
[333367976,1722075047641,-151.0,0.00014246,2]
[333367977,1722075047651,-151.0,0.00014246,2]
[333367978,1722075047660,-500.0,0.00014246,2]
[333367979,1722075047670,-500.0,0.00014246,2]
[333367980,1722075047680,-1166.75,0.00014246,2]
[333367981,1722075047689,-500.0,0.00014246,2]
[333367982,1722075047699,-500.0,0.00014246,2]
[333367983,1722075047708,-908.42,0.00014246,2]
[333367984,1722075047718,-590.84,0.00014246,2]
[333367985,1722075047728,-500.0,0.00014246,2]
[333367986,1722075047737,-500.0,0.00014246,2]
[333367987,1722075047747,-594.61,0.00014246,2]
[333367988,1722075047757,-500.0,0.00014246,2]
[333367989,1722075047767,-500.0,0.00014246,2]
[333367990,1722075047777,-500.0,0.00014246,2]
[333367991,1722075047787,-500.0,0.00014246,2]
[333367992,1722075047797,-571.43257624,0.00014246,2]
[333367993,1722075047806,-500.0,0.00014246,2]
[333367994,1722075047817,-877.06,0.00014246,2]
[333367995,1722075047828,-500.0,0.00014246,2]
[333367996,1722075047838,-500.0,0.00014246,2]
[333367997,1722075047848,-4384.68,0.00014246,2]
[333367998,1722075047858,-1285.58,0.00014246,2]
[333367999,1722075047868,-928.85,0.00014246,2]
[333368000,1722075047878,-1072.14,0.00014246,2]
[333368001,1722075047888,-500.0,0.00014246,2]
[333368002,1722075047898,-1918.81,0.00014246,2]
[333368003,1722075047908,-500.0,0.00014246,2]
[333368004,1722075047917,-500.0,0.00014246,2]
[333368005,1722075047927,-151.0,0.00014246,2]
[333368006,1722075047937,-500.0,0.00014246,2]
[333368007,1722075047948,-1603.87,0.00014246,2]
[333368008,1722075047958,-541.25,0.00014246,2]
[333368009,1722075047967,-6917.34,0.00014246,2]
[333368010,1722075047977,-500.0,0.00014246,2]
[333368011,1722075047987,-500.0,0.00014246,2]
[333368012,1722075047997,-500.0,0.00014246,2]
[333368013,1722075048007,-507.48370765,0.00014246,2]
[333368014,1722075048017,-3168.04,0.00014246,2]
[333368015,1722075048027,-1064.65,0.00014246,2]
[333368016,1722075048037,-500.0,0.00014246,2]
[333368017,1722075048047,-415.40742,0.00014246,2]
[333368018,1722075048057,-500.0,0.00014246,2]
[333368019,1722075048068,-1430.94,0.00014246,2]
[333368020,1722075048078,-2202.23,0.00014246,2]
[333368021,1722075048088,-415.40742,0.00014246,2]
[333368022,1722075048099,-640.32,0.00014246,2]
[333368023,1722075048110,-1833.72,0.00014246,2]
[333368024,1722075048120,-786.3,0.00014246,2]
[333368025,1722075048130,-152.228824,0.00014246,2]
[333368026,1722075048141,-538.072234,0.00014246,2]
[333368027,1722075048151,-151.0,0.00014246,2]
[333368028,1722075048162,-152.228824,0.00014246,2]
[333368029,1722075048172,-538.072234,0.00014246,2]
[333368030,1722075048183,-500.0,0.00014246,2]
[333368031,1722075048194,-716.42,0.00014246,2]
[333368032,1722075048205,-500.0,0.00014246,2]
[333368033,1722075048215,-500.0,0.00014246,2]
[333368034,1722075048225,-151.0,0.00014246,2]
[333368035,1722075048235,-500.0,0.00014246,2]
[333368036,1722075048245,-611.75,0.00014246,2]
[333368037,1722075048255,-1350.04,0.00014246,2]
[333368038,1722075048265,-923.059716,0.00014246,2]
[333368039,1722075048276,-923.059716,0.00014246,2]
[333368040,1722075048286,-500.0,0.00014246,2]
[333368041,1722075048296,-1512.56,0.00014246,2]
[333368042,1722075048306,-500.0,0.00014246,2]
[333368043,1722075048319,-809.85,0.00014246,2]
[333368044,1722075048331,-652.09,0.00014246,2]
[333368045,1722075048341,-500.0,0.00014246,2]
[333368046,1722075048351,-618.71,0.00014246,2]
[333368047,1722075048361,-981.28,0.00014246,2]
[333368048,1722075048372,-504.60023495,0.00014246,2]
[333368049,1722075048382,-2141.38,0.00014246,2]
[333368050,1722075048392,-522.09,0.00014246,2]
[333368051,1722075048402,-154.443412,0.00014246,2]
[333368052,1722075048412,-233.44487698,0.00014246,2]
[333368053,1722075048425,-500.0,0.00014246,2]
[333368054,1722075048435,-1299.52,0.00014246,2]
[333368055,1722075048445,-500.0,0.00014246,2]
[333368056,1722075048455,-894.06,0.00014246,2]
[333368057,1722075048465,-1018.98,0.00014246,2]
[333368058,1722075048475,-728.95,0.00014246,2]
[333368059,1722075048485,-500.0,0.00014246,2]
[333368060,1722075048497,-151.0,0.00014246,2]
[333368061,1722075048509,-714.09,0.00014246,2]
[333368062,1722075048520,-151.0,0.00014246,2]
[333368063,1722075048530,-1085.31,0.00014246,2]
[333368064,1722075048541,-1080.39,0.00014246,2]
[333368065,1722075048551,-500.0,0.00014246,2]
[333368066,1722075048560,-500.0,0.00014246,2]
[333368067,1722075048571,-500.0,0.00014246,2]
[333368068,1722075048581,-500.0,0.00014246,2]
[333368069,1722075048592,-879.1,0.00014246,2]
[333368070,1722075048603,-500.0,0.00014246,2]
[333368071,1722075048612,-267.081974,0.00014246,2]
[333368072,1722075048622,-267.081974,0.00014246,2]
[333368073,1722075048632,-1751.88,0.00014246,2]
[333368074,1722075048643,-339.271234,0.00014246,2]
[333368075,1722075048653,-1385.03,0.00014246,2]
[333368076,1722075048662,-339.271234,0.00014246,2]
[333368077,1722075048672,-500.0,0.00014246,2]
[333368078,1722075048682,-1796.01,0.00014246,2]
[333368079,1722075048693,-248.86,0.00014246,2]
[333368080,1722075048703,-656.36,0.00014246,2]
[333368081,1722075048714,-151.0,0.00014246,2]
[333368082,1722075048724,-500.0,0.00014246,2]
[333368083,1722075048736,-500.0,0.00014246,2]
[333368084,1722075048746,-742.6,0.00014246,2]
[333368085,1722075048756,-1185.24,0.00014246,2]
[333368086,1722075048766,-151.0,0.00014246,2]
[333368087,1722075048776,-2214.71,0.00014246,2]
[333368088,1722075048786,-500.0,0.00014246,2]